bitfinex/quotes_BTCUSD_20230405
["timestamp","ask_amount","ask_price","bid_price","bid_amount"]
[1680705505831,1.549797,28181.0,28180.0,0.4709]
[1680705506332,1.576797,28181.0,28180.0,0.4709]
[1680705506554,1.896197,28181.0,28180.0,0.4659]
[1680705507456,1.869197,28181.0,28180.0,0.4659]
[1680705507667,1.896197,28181.0,28180.0,0.4659]
[1680705507875,1.869197,28181.0,28180.0,0.4659]
[1680705508105,1.896197,28181.0,28180.0,0.4659]
[1680705508543,1.869197,28181.0,28180.0,0.4659]
[1680705508744,1.896197,28181.0,28180.0,0.4659]
[1680705508954,1.869197,28181.0,28180.0,0.4659]
[1680705509165,1.73719119,28181.0,28180.0,0.4659]
[1680705509383,1.21344808,28181.0,28180.0,0.4659]
[1680705509599,0.74567308,28181.0,28180.0,0.4659]
[1680705510455,0.77267308,28181.0,28180.0,0.4659]
[1680705510664,0.85068139,28181.0,28180.0,0.4659]
[1680705510875,0.88618139,28181.0,28180.0,0.4659]
[1680705511082,0.85918139,28181.0,28180.0,0.4659]
[1680705511521,1.26998139,28181.0,28180.0,0.4659]
[1680705511967,1.36998139,28181.0,28180.0,0.4659]
[1680705512657,1.7067845,28181.0,28180.0,0.4659]
[1680705513283,1.6797845,28181.0,28180.0,0.4659]
[1680705513486,1.7067845,28181.0,28180.0,0.4659]
[1680705513693,1.6797845,28181.0,28180.0,0.4659]
[1680705513903,1.7067845,28181.0,28180.0,0.4659]
[1680705514327,1.6797845,28181.0,28180.0,0.4659]
[1680705514500,1.7067845,28181.0,28180.0,0.4659]
[1680705514747,1.14707619,28181.0,28180.0,0.4659]
[1680705514948,1.12947308,28181.0,28180.0,0.4659]
[1680705515371,1.25647308,28181.0,28180.0,0.4659]
[1680705515998,1.26497308,28181.0,28180.0,0.4659]
[1680705516204,1.23797308,28181.0,28180.0,0.4659]
[1680705516379,1.43218889,28181.0,28180.0,0.4659]
[1680705516664,1.40518889,28181.0,28180.0,0.4659]
[1680705516880,1.43218889,28181.0,28180.0,0.4659]
[1680705517497,1.33218889,28181.0,28180.0,0.4659]
[1680705517708,1.43218889,28181.0,28180.0,0.4659]
[1680705518545,1.43218889,28181.0,28180.0,0.3235755]
[1680705519372,1.43218889,28181.0,28180.0,0.32347657]
[1680705523847,1.449792,28181.0,28180.0,0.32347657]
[1680705524935,0.15086343,28180.0,28179.0,0.01018]
[1680705525151,2.20433969,28180.0,28179.0,0.01]
[1680705525392,1.9025428,28180.0,28179.0,0.01]
[1680705526037,1.9295428,28180.0,28179.0,0.01]
[1680705526247,1.9025428,28180.0,28179.0,0.01]
[1680705526465,1.9295428,28180.0,28179.0,0.01]
[1680705526907,1.9025428,28180.0,28179.0,0.01]
[1680705527127,1.9295428,28180.0,28179.0,0.01]
[1680705527310,1.9025428,28180.0,28179.0,0.01]
[1680705527545,2.0138631,28180.0,28179.0,0.01]
[1680705528395,1.9868631,28180.0,28179.0,0.01]
[1680705528612,1.98703762,28180.0,28179.0,0.01]
[1680705528819,2.0138631,28180.0,28179.0,0.01]
[1680705529563,1.9295428,28180.0,28179.0,0.01]
[1680705529768,1.6018428,28180.0,28179.0,0.01]
[1680705530370,1.9210428,28180.0,28179.0,0.01]
[1680705531262,1.6103428,28180.0,28179.0,0.01]
[1680705532378,1.9295428,28180.0,28179.0,0.01]
[1680705532947,2.0138631,28180.0,28179.0,0.01]
[1680705534588,2.14034355,28180.0,28179.0,0.01]
[1680705534995,2.05602325,28180.0,28179.0,0.01]
[1680705535209,2.14090228,28180.0,28179.0,0.01]
[1680705535428,2.86365304,28180.0,28171.0,0.02182]
[1680705535642,0.36128,28172.0,28171.0,0.0217]
[1680705535844,1.01653337,28172.0,28171.0,0.02188]
[1680705536040,0.91076456,28172.0,28171.0,0.0217]
[1680705536680,0.91076456,28172.0,28171.0,0.02182]
[1680705537051,0.73328456,28172.0,28171.0,0.02182]
[1680705537252,0.73328456,28172.0,28171.0,0.01676]
[1680705537478,0.73328456,28172.0,28171.0,0.0167]
[1680705537678,0.76028456,28172.0,28171.0,0.0167]
[1680705538104,0.76028456,28172.0,28171.0,0.02959292]
[1680705539429,0.67648456,28172.0,28171.0,0.02959292]
[1680705539626,0.57665908,28172.0,28171.0,0.02959292]
[1680705540701,0.57648456,28172.0,28171.0,0.02959292]
[1680705542686,0.76028456,28172.0,28171.0,0.02959292]
[1680705543334,0.84428456,28172.0,28171.0,0.02959292]
[1680705543547,1.07458767,28172.0,28171.0,0.02959292]
[1680705543759,1.37458767,28172.0,28171.0,0.02959292]
[1680705543970,1.34776219,28172.0,28171.0,0.02959292]
[1680705544186,1.37476219,28172.0,28171.0,0.0167]
[1680705546543,1.34776219,28172.0,28171.0,0.0167]
[1680705547251,1.37467767,28172.0,28166.0,0.00012]
[1680705547477,0.2127,28166.0,28164.0,0.02232]
[1680705547703,0.67640143,28165.0,28164.0,0.02232]
[1680705547919,0.45151156,28165.0,28164.0,0.0222]
[1680705548133,0.35471056,28165.0,28164.0,0.0222]
[1680705548358,0.00017452,28166.0,28165.0,0.01324778]
[1680705548584,0.35471056,28166.0,28165.0,0.01324778]
[1680705549476,0.01437452,28168.0,28165.0,0.01342778]
[1680705549689,0.36891156,28167.0,28165.0,0.01324778]
[1680705549927,0.35471056,28167.0,28165.0,0.01324778]
[1680705550355,0.027,28166.0,28165.0,0.01324778]
[1680705550564,0.36891156,28167.0,28165.0,0.01324778]
[1680705550810,0.39591156,28167.0,28165.0,0.01324778]
[1680705551224,0.36891156,28167.0,28165.0,0.01324778]
[1680705551429,0.027,28166.0,28165.0,0.01324778]
[1680705551639,0.027,28166.0,28165.0,0.01342778]
[1680705551853,0.027,28166.0,28165.0,0.22459823]
[1680705552084,6e-05,28174.0,28165.0,0.4780178]
[1680705552300,0.35471056,28173.0,28169.0,0.0837]
[1680705552511,0.35488508,28173.0,28169.0,0.0837]
[1680705552922,0.35488508,28173.0,28168.0,0.1688579]
[1680705552923,0.36908308,28173.0,28168.0,0.1688579]
[1680705553145,0.36899856,28173.0,28168.0,0.1688579]
[1680705553364,0.36890856,28173.0,28168.0,0.1688579]
[1680705553804,0.37690856,28173.0,28169.0,0.001]
[1680705553984,0.36890856,28173.0,28168.0,0.1688579]
[1680705554229,0.37090856,28173.0,28168.0,0.1688579]
[1680705554688,0.35671056,28173.0,28168.0,0.1688579]
[1680705555531,0.35671056,28173.0,28168.0,0.29614492]
[1680705555747,0.35671056,28173.0,28168.0,0.1690379]
[1680705555960,0.35671056,28173.0,28168.0,0.29614492]
[1680705556165,0.35671056,28173.0,28169.0,0.0837]
[1680705556377,0.35471056,28173.0,28169.0,0.0837]
[1680705556806,0.35471056,28173.0,28169.0,0.1685579]
[1680705557025,0.35671056,28173.0,28169.0,0.1685579]
[1680705557303,0.002,28173.0,28172.0,0.0837]
[1680705557520,0.014196,28176.0,28172.0,0.0787]
[1680705557735,0.002,28173.0,28172.0,0.0787]
[1680705558595,0.014196,28176.0,28172.0,0.0787]
[1680705558807,0.001,28173.0,28172.0,0.0787]
[1680705559442,0.003,28173.0,28172.0,0.0787]
[1680705559853,0.00289433,28173.0,28172.0,0.0787]
[1680705560229,0.00289433,28173.0,28172.0,0.0837]
[1680705560459,0.014197,28175.0,28172.0,0.0837]
[1680705560670,0.014197,28175.0,28172.0,0.0787]
[1680705560900,0.18448681,28175.0,28170.0,0.3122]
[1680705561114,0.14189681,28174.0,28170.0,0.00012]
[1680705561323,0.14189681,28174.0,28169.0,0.37516]
[1680705561324,0.099386,28173.0,28169.0,0.37528]
[1680705561534,0.24328281,28173.0,28169.0,0.00018]
[1680705561741,0.101386,28173.0,28168.0,0.0850379]
[1680705561957,0.101386,28173.0,28168.0,0.0848579]
[1680705561958,0.24328281,28173.0,28168.0,0.0848579]
[1680705562156,0.050252,28172.0,28168.0,0.1690379]
[1680705562355,0.042597,28171.0,28168.0,0.1690379]
[1680705562611,0.042597,28171.0,28170.0,0.011]
[1680705562831,0.042597,28171.0,28168.0,0.084]
[1680705563042,0.042597,28171.0,28168.0,0.1738579]
[1680705563227,0.042597,28171.0,28168.0,0.1689779]
[1680705563365,0.044597,28171.0,28168.0,0.1689779]
[1680705563849,0.0044597,28170.0,28168.0,0.1689779]
[1680705564053,0.044597,28171.0,28168.0,0.1689779]
[1680705564054,0.0426,28169.0,28168.0,0.1689779]
[1680705564264,0.0426,28169.0,28168.0,0.1690379]
[1680705564474,0.0426,28169.0,28168.0,0.08418]
[1680705564680,0.014198,28172.0,28168.0,0.08912]
[1680705564885,0.014198,28172.0,28168.0,0.1688579]
[1680705565088,0.002,28169.0,28168.0,0.1690379]
[1680705565724,0.014199,28171.0,28168.0,0.1690379]
[1680705565925,0.014199,28171.0,28168.0,0.1740379]
[1680705566352,0.014199,28171.0,28168.0,0.1690379]
[1680705567191,0.35471056,28174.0,28168.0,0.0850379]
[1680705567401,0.002,28169.0,28168.0,0.1688579]
[1680705567617,0.014198,28173.0,28168.0,0.1690379]
[1680705567827,0.002,28171.0,28168.0,0.1690379]
[1680705568055,0.35471056,28172.0,28169.0,0.01145244]
[1680705568684,0.002,28171.0,28169.0,0.01145244]
[1680705569125,0.35471056,28172.0,28169.0,0.01145244]
[1680705569334,0.36271056,28172.0,28169.0,0.01245244]
[1680705569550,0.052311,28171.0,28169.0,0.01245244]
[1680705570019,0.35471056,28170.0,28169.0,0.01245244]
[1680705570235,0.44503303,28170.0,28169.0,0.01145244]
[1680705570862,0.44503303,28170.0,28169.0,0.01245244]
[1680705571068,0.44503303,28170.0,28169.0,0.01145244]
[1680705571279,0.46403303,28170.0,28169.0,0.01345244]
[1680705571701,0.44503303,28170.0,28169.0,0.01145244]
[1680705571912,0.44503303,28170.0,28169.0,0.01345244]
[1680705571913,0.46403303,28170.0,28169.0,0.01345244]
[1680705572571,0.59703103,28170.0,28169.0,0.01345244]
[1680705572793,0.67515158,28170.0,28169.0,0.01345244]
[1680705573003,0.6563261,28170.0,28169.0,0.01145244]
[1680705573646,0.7805711,28170.0,28169.0,0.01145244]
[1680705573857,0.8075711,28170.0,28169.0,0.01145244]
[1680705574076,1.00159658,28170.0,28164.0,0.1070579]
[1680705574309,0.59663967,28169.0,28164.0,0.1070579]
[1680705574519,0.090731,28168.0,28164.0,0.1070579]
[1680705574737,0.40454756,28167.0,28164.0,0.1070579]
[1680705574943,0.13719,28166.0,28164.0,0.1072379]
[1680705575154,0.44169356,28166.0,28165.0,0.01055486]
[1680705575382,0.49477556,28166.0,28165.0,0.01055486]
[1680705575594,0.42021856,28166.0,28165.0,0.01055486]
[1680705576016,0.42021856,28166.0,28164.0,0.1072379]
[1680705576253,0.051852,28165.0,28164.0,0.1072379]
[1680705577292,0.070852,28165.0,28164.0,0.1072379]
[1680705577544,0.051852,28165.0,28164.0,0.1072379]
[1680705577752,0.070852,28165.0,28164.0,0.1072379]
[1680705577960,0.051852,28165.0,28164.0,0.1072379]
[1680705578164,0.00017452,28170.0,28164.0,0.0222]
[1680705578370,0.35471056,28169.0,28164.0,0.0222]
[1680705578574,0.05425,28168.0,28164.0,0.0222]
[1680705578779,0.00017452,28170.0,28164.0,0.1070579]
[1680705578780,0.019,28165.0,28164.0,0.1070579]
[1680705578983,0.019,28165.0,28164.0,0.1912379]
[1680705579401,0.019,28165.0,28164.0,0.31746702]
[1680705579607,0.00017452,28171.0,28164.0,0.31728702]
[1680705579817,0.37371056,28170.0,28166.0,0.0839]
[1680705580022,0.35471056,28170.0,28167.0,0.084]
[1680705580226,0.35471056,28170.0,28167.0,0.16906702]
[1680705580453,0.00017452,28171.0,28167.0,0.16912702]
[1680705580665,0.00017452,28171.0,28167.0,0.08494702]
[1680705580666,0.35471056,28170.0,28167.0,0.08494702]
[1680705580875,0.39413456,28170.0,28167.0,0.00018]
[1680705581083,0.36713456,28170.0,28167.0,0.00018]
[1680705581296,0.38013456,28170.0,28167.0,0.00018]
[1680705581533,0.053148,28169.0,28166.0,0.00018]
[1680705581759,0.012425,28169.0,28166.0,0.08512702]
[1680705582191,0.012425,28169.0,28166.0,0.00018]
[1680705582403,0.36713556,28169.0,28166.0,0.08512702]
[1680705582653,0.40427556,28168.0,28165.0,0.00018]
[1680705582869,0.052849,28167.0,28164.0,0.10732702]
[1680705583083,0.35471056,28167.0,28164.0,0.10732702]
[1680705583924,0.35571056,28167.0,28164.0,0.11132702]
[1680705584140,0.35471056,28167.0,28164.0,0.10732702]
[1680705584379,0.36771056,28167.0,28164.0,0.10732702]
[1680705585187,0.35471056,28166.0,28164.0,0.10732702]
[1680705585469,0.35471056,28166.0,28164.0,0.02238]
[1680705585888,0.35471056,28166.0,28164.0,0.10732702]
[1680705586693,0.36771056,28166.0,28164.0,0.10732702]
[1680705587512,0.052099,28165.0,28164.0,0.10732702]
[1680705587722,0.35471056,28165.0,28164.0,0.10732702]
[1680705588921,0.38071056,28165.0,28164.0,0.10732702]
[1680705589132,0.35471056,28165.0,28164.0,0.10732702]
[1680705589350,0.42330356,28165.0,28164.0,0.02238]
[1680705589544,0.37371056,28165.0,28164.0,0.10732702]
[1680705589748,0.00014697,28167.0,28164.0,0.10732702]
[1680705589950,0.026,28165.0,28164.0,0.0222]
[1680705590199,0.35471056,28167.0,28164.0,0.10732702]
[1680705591465,0.019,28165.0,28164.0,0.10732702]
[1680705591625,0.019,28165.0,28164.0,0.10714702]
[1680705591827,0.019,28165.0,28164.0,0.10732702]
[1680705592048,0.35471056,28169.0,28164.0,0.10732702]
[1680705592201,0.019,28165.0,28164.0,0.10732702]
[1680705592398,0.019,28165.0,28164.0,0.10714702]
[1680705592610,0.019,28165.0,28164.0,0.10726702]
[1680705592853,0.36713456,28170.0,28164.0,0.10726702]
[1680705593089,0.053962,28169.0,28164.0,0.11114702]
[1680705593306,0.05410897,28169.0,28164.0,0.11114702]
[1680705594535,0.05410897,28169.0,28164.0,0.10714702]
[1680705594734,0.001,28165.0,28164.0,0.11214702]
[1680705594962,0.36728153,28170.0,28164.0,0.10714702]
[1680705595311,0.056454,28169.0,28164.0,0.11214702]
[1680705595522,0.00014697,28169.0,28164.0,0.10714702]
[1680705595733,0.001,28165.0,28164.0,0.11214702]
[1680705595941,0.10014697,28169.0,28164.0,0.10714702]
[1680705596164,0.05185,28168.0,28164.0,0.11214702]
[1680705596374,0.05263597,28169.0,28164.0,0.11214702]
[1680705597204,0.06406097,28169.0,28164.0,0.10714702]
[1680705597405,0.001,28165.0,28164.0,0.11214702]
[1680705597611,0.01257197,28169.0,28164.0,0.10714702]
[1680705597821,0.013425,28169.0,28165.0,0.08494702]
[1680705598030,0.012425,28169.0,28165.0,0.08494702]
[1680705598240,0.01257197,28169.0,28165.0,0.08494702]
[1680705598758,0.36728253,28169.0,28165.0,0.08494702]
[1680705598969,0.052178,28168.0,28165.0,0.08494702]
[1680705599190,0.064603,28168.0,28165.0,0.08494702]
[1680705599395,0.01257197,28168.0,28164.0,0.10714702]
[1680705599564,0.050701,28167.0,28164.0,0.10714702]
[1680705599754,0.012425,28168.0,28164.0,0.10714702]
[1680705599950,0.012425,28168.0,28165.0,0.001]
[1680705600152,0.35485753,28169.0,28165.0,0.08494702]
[1680705600378,0.36728253,28169.0,28164.0,0.10714702]
[1680705600752,0.001,28168.0,28164.0,0.11214702]
[1680705600966,0.50917934,28168.0,28163.0,0.06337665]
[1680705601169,0.40665956,28167.0,28163.0,0.06337665]
[1680705601368,0.052674,28166.0,28163.0,0.06337665]
[1680705601691,0.35485753,28167.0,28162.0,0.0216]
[1680705601903,0.49675434,28167.0,28162.0,0.0216]
[1680705602264,0.50918034,28167.0,28162.0,0.0216]
[1680705602467,0.36728353,28167.0,28162.0,0.0216]
[1680705602666,0.64089379,28167.0,28162.0,0.0216]
[1680705603056,0.063281,28165.0,28162.0,0.0216]
[1680705603261,0.40361956,28164.0,28162.0,0.0216]
[1680705603465,0.064003,28163.0,28162.0,0.0216]
[1680705603670,0.42040956,28163.0,28162.0,0.0216]
[1680705603871,0.42055653,28163.0,28162.0,0.0216]
[1680705604316,0.46261218,28163.0,28162.0,0.0216]
[1680705604529,0.46961218,28163.0,28162.0,0.0216]
[1680705605540,0.46261218,28163.0,28162.0,0.0216]
[1680705605695,0.36728453,28163.0,28162.0,0.0216]
[1680705605902,0.44518153,28163.0,28162.0,0.0216]
[1680705606330,0.40675453,28163.0,28162.0,0.0216]
[1680705606769,0.43375453,28163.0,28162.0,0.0216]
[1680705606961,0.40675453,28163.0,28162.0,0.0216]
[1680705607202,0.59291498,28163.0,28162.0,0.0216]
[1680705608433,0.52888341,28163.0,28162.0,0.0216]
[1680705608639,0.54648652,28163.0,28162.0,0.0216]
[1680705609524,0.50188341,28163.0,28162.0,0.0216]
[1680705609731,0.52888341,28163.0,28162.0,0.0216]
[1680705609941,0.50188341,28163.0,28162.0,0.0216]
[1680705610156,0.52888341,28163.0,28162.0,0.0216]
[1680705610368,0.59157185,28163.0,28162.0,0.0216]
[1680705610731,0.69157185,28163.0,28162.0,0.0216]
[1680705610968,0.69171882,28163.0,28162.0,0.0216]
[1680705612775,0.69115935,28163.0,28162.0,0.0216]
[1680705614032,0.66415935,28163.0,28162.0,0.0216]
[1680705614234,0.69115935,28163.0,28162.0,0.0216]
[1680705614456,0.66415935,28163.0,28162.0,0.0216]
[1680705614930,0.69115935,28163.0,28162.0,0.0216]
[1680705615147,0.70876246,28163.0,28162.0,0.0216]
[1680705615355,0.69115935,28163.0,28162.0,0.0216]
[1680705615794,0.62847091,28163.0,28162.0,0.0216]
[1680705617467,0.93287091,28163.0,28162.0,0.0216]
[1680705617897,0.95047402,28163.0,28162.0,0.0216]
[1680705618522,0.92347402,28163.0,28162.0,0.0216]
[1680705619306,0.95047402,28163.0,28162.0,0.0216]
[1680705619511,1.12266452,28163.0,28162.0,0.0216]
[1680705619717,1.62246452,28163.0,28162.0,0.0216]
[1680705620780,1.59561149,28163.0,28162.0,0.0216]
[1680705620988,1.62261149,28163.0,28162.0,0.0216]
[1680705621190,1.89561149,28163.0,28162.0,0.0216]
[1680705621399,1.92261149,28163.0,28162.0,0.0216]
[1680705622954,2.04688749,28163.0,28162.0,0.0216]
[1680705624036,2.36608749,28163.0,28162.0,0.0216]
[1680705624240,2.36618749,28163.0,28162.0,0.0216]
[1680705626527,2.36618749,28163.0,28160.0,0.0216]
[1680705626528,0.1,28162.0,28160.0,0.0216]
[1680705626755,1.51872537,28161.0,28153.0,0.00018]
[1680705627004,1.51872537,28161.0,28152.0,0.00012]
[1680705627005,0.488,28154.0,28152.0,0.00012]
[1680705627211,0.82990337,28153.0,28151.0,0.0216]
[1680705627422,0.62399256,28152.0,28151.0,0.0216]
[1680705627633,0.94582137,28152.0,28151.0,0.0216]
[1680705627847,1.18072137,28152.0,28151.0,0.0216]
[1680705628066,1.03882456,28152.0,28151.0,0.0216]
[1680705628298,0.80372456,28152.0,28151.0,0.0216]
[1680705628512,0.74692456,28152.0,28151.0,0.0216]
[1680705628731,0.71992456,28152.0,28151.0,0.0216]
[1680705629158,0.80362456,28152.0,28151.0,0.0216]
[1680705629382,0.90362456,28152.0,28151.0,0.0216]
[1680705629600,1.02920812,28152.0,28151.0,0.0216]
[1680705629828,1.05620812,28152.0,28151.0,0.0216]
[1680705630035,1.02920812,28152.0,28151.0,0.0216]
[1680705630460,1.05620812,28152.0,28151.0,0.0216]
[1680705630682,1.02920812,28152.0,28151.0,0.0216]
[1680705630940,1.69231123,28152.0,28151.0,0.0216]
[1680705631144,1.66531123,28152.0,28151.0,0.0216]
[1680705631394,0.1,28151.0,28148.0,0.0216]
[1680705631612,1.01257056,28149.0,28148.0,0.0216]
[1680705631846,1.07729056,28149.0,28148.0,0.0216]
[1680705632062,1.40499056,28149.0,28148.0,0.0216]
[1680705632276,1.72259367,28149.0,28148.0,0.0216]
[1680705632490,1.72259367,28149.0,28147.0,0.0216]
[1680705632491,0.3127,28148.0,28147.0,0.0216]
[1680705632703,0.3127,28148.0,28144.0,0.0216]
[1680705632704,0.1,28147.0,28144.0,0.0216]
[1680705632920,0.73541056,28145.0,28144.0,0.0216]
[1680705633138,1.2252731,28145.0,28144.0,0.0216]
[1680705633363,0.35471056,28139.0,28138.0,0.01]
[1680705633590,0.85815237,28139.0,28138.0,0.01]
[1680705633829,1.22147548,28139.0,28138.0,0.01]
[1680705634048,0.2127,28137.0,28132.0,0.0216]
[1680705634278,0.82885056,28133.0,28132.0,0.0216]
[1680705634492,1.13935043,28133.0,28132.0,0.0216]
[1680705634724,0.92306856,28133.0,28132.0,0.0216]
[1680705634940,0.40310756,28133.0,28132.0,0.0216]
[1680705635365,0.61580756,28133.0,28132.0,0.0216]
[1680705635585,0.63674756,28133.0,28132.0,0.0216]
[1680705636239,0.66374756,28133.0,28132.0,0.0216]
[1680705636451,0.40310756,28133.0,28132.0,0.0216]
[1680705636657,0.74704756,28133.0,28132.0,0.0216]
[1680705637138,0.86194437,28133.0,28132.0,0.0216]
[1680705637430,1.14845067,28133.0,28132.0,0.0216]
[1680705637649,1.12145067,28133.0,28132.0,0.0216]
[1680705637856,1.30827114,28133.0,28132.0,0.0216]
[1680705638303,1.40827114,28133.0,28132.0,0.0216]
[1680705638517,0.2127,28131.0,28127.0,0.0015]
[1680705638771,0.82897056,28128.0,28127.0,0.0015]
[1680705638990,1.01561492,28128.0,28127.0,0.0015]
[1680705639178,0.83435845,28128.0,28127.0,0.0015]
[1680705639436,0.84285845,28128.0,28127.0,0.0015]
[1680705640134,0.83020009,28128.0,28127.0,0.0015]
[1680705640340,0.85720009,28128.0,28127.0,0.0015]
[1680705640772,0.83020009,28128.0,28127.0,0.0015]
[1680705640984,0.74640009,28128.0,28127.0,0.0015]
[1680705641641,0.77340009,28128.0,28127.0,0.0015]
[1680705641850,0.866491,28128.0,28127.0,0.0015]
[1680705642497,0.893491,28128.0,28127.0,0.0015]
[1680705643360,0.888491,28128.0,28127.0,0.0015]
[1680705643810,0.888591,28128.0,28127.0,0.0015]
[1680705644024,0.804591,28128.0,28127.0,0.0015]
[1680705644441,0.877591,28128.0,28127.0,0.0015]
[1680705644651,0.904591,28128.0,28127.0,0.0015]
[1680705644864,0.877591,28128.0,28127.0,0.0015]
[1680705645112,0.987891,28128.0,28127.0,0.0015]
[1680705645322,0.960891,28128.0,28127.0,0.0015]
[1680705645531,0.987891,28128.0,28127.0,0.0015]
[1680705645952,0.960891,28128.0,28127.0,0.0015]
[1680705646159,0.987891,28128.0,28127.0,0.0015]
[1680705646439,0.960891,28128.0,28127.0,0.0015]
[1680705646862,0.0015,28127.0,28122.0,0.0018]
[1680705647078,0.82922056,28123.0,28122.0,0.0018]
[1680705647291,0.61784256,28123.0,28122.0,0.0018]
[1680705647503,0.41758756,28123.0,28122.0,0.0018]
[1680705648382,0.43214256,28123.0,28122.0,0.0018]
[1680705648827,0.35471056,28123.0,28122.0,0.0018]
[1680705649060,0.39415556,28123.0,28122.0,0.0018]
[1680705649274,0.39415556,28123.0,28122.0,0.0236813]
[1680705649699,0.38171056,28123.0,28122.0,0.0236813]
[1680705649915,0.39415556,28123.0,28122.0,0.0236813]
[1680705650373,0.46140502,28123.0,28122.0,0.0236813]
[1680705650605,0.48840502,28123.0,28122.0,0.0236813]
[1680705651214,0.48855199,28123.0,28115.0,0.30627932]
[1680705651428,0.14189681,28122.0,28117.0,0.084]
[1680705651668,0.35471056,28121.0,28119.0,0.0838]
[1680705651889,0.35471056,28121.0,28120.0,0.0839]
[1680705651890,0.00014697,28121.0,28120.0,0.0839]
[1680705652116,0.039445,28123.0,28120.0,0.0839]
[1680705652328,0.39415556,28123.0,28120.0,0.0839]
[1680705652547,0.38185753,28123.0,28120.0,0.0839]
[1680705652987,0.051198,28122.0,28120.0,0.0839]
[1680705653239,0.07734497,28122.0,28120.0,0.0839]
[1680705653451,0.052668,28121.0,28119.0,0.084]
[1680705653663,0.052668,28121.0,28115.0,0.39045932]
[1680705653664,0.56186834,28121.0,28115.0,0.39045932]
[1680705653874,0.14189681,28120.0,28115.0,0.39027932]
[1680705654143,0.36715756,28119.0,28115.0,0.39027932]
[1680705654355,0.50920134,28119.0,28115.0,0.084]
[1680705654773,0.36730453,28119.0,28115.0,0.084]
[1680705655804,0.050569,28118.0,28114.0,0.0891677]
[1680705656008,0.36715856,28117.0,28114.0,0.0051677]
[1680705656220,0.049315,28116.0,28114.0,0.0051677]
[1680705656429,0.012448,28116.0,28114.0,0.0051677]
[1680705656644,0.35471056,28115.0,28114.0,0.0051677]
[1680705656849,0.35474301,28115.0,28114.0,0.0051677]
[1680705657066,0.35485753,28115.0,28114.0,0.0051677]
[1680705657271,0.36730553,28115.0,28114.0,0.0051677]
[1680705657479,0.43352568,28115.0,28114.0,0.0051677]
[1680705657685,0.44504256,28115.0,28114.0,0.0051677]
[1680705657901,0.43259456,28115.0,28114.0,0.0051677]
[1680705658116,0.077884,28115.0,28114.0,0.02628868]
[1680705658320,0.027,28115.0,28114.0,0.02628868]
[1680705658960,0.42278136,28115.0,28114.0,0.02628868]
[1680705659221,0.44956943,28115.0,28114.0,0.02628868]
[1680705659424,0.54774056,28115.0,28114.0,0.02628868]
[1680705659837,0.73344056,28115.0,28114.0,0.02628868]
[1680705660041,0.85294056,28115.0,28114.0,0.02628868]
[1680705660254,0.82594056,28115.0,28114.0,0.02628868]
[1680705660503,1.12030213,28115.0,28114.0,0.02628868]
[1680705660727,1.23394918,28115.0,28114.0,0.02628868]
[1680705660948,0.1,28114.0,28112.0,0.0216]
[1680705661164,0.56741056,28106.0,28101.0,0.00018]
[1680705661403,0.81537537,28106.0,28096.0,0.01787627]
[1680705661651,0.15,28105.0,28088.0,0.08735789]
[1680705661922,0.15,28105.0,28091.0,0.4]
[1680705661923,0.012455,28100.0,28091.0,0.4]
[1680705662137,0.49660737,28099.0,28095.0,0.0837]
[1680705662348,0.49675434,28099.0,28091.0,0.39951817]
[1680705662566,0.50921034,28099.0,28091.0,0.48323817]
[1680705662793,0.35471056,28097.0,28090.0,0.00018]
[1680705663018,0.051601,28098.0,28083.0,0.15148263]
[1680705663019,0.36716756,28095.0,28083.0,0.15166263]
[1680705663245,0.35471056,28090.0,28084.0,0.06491207]
[1680705663459,0.35471056,28090.0,28079.0,0.21050865]
[1680705663460,0.36731753,28090.0,28079.0,0.21050865]
[1680705663678,0.45101753,28090.0,28076.0,0.41475437]
[1680705663900,0.37789856,28089.0,28076.0,0.22512415]
[1680705664118,0.42923217,28088.0,28080.0,0.09831365]
[1680705664421,0.49660737,28087.0,28080.0,0.01431365]
[1680705664633,0.052053,28086.0,28080.0,0.01431365]
[1680705664860,0.00012245,28086.0,28084.0,0.084]
[1680705665081,0.001,28090.0,28084.0,0.084]
[1680705665311,0.35485753,28090.0,28084.0,0.084]
[1680705665519,0.013,28087.0,28084.0,0.084]
[1680705665794,0.00014697,28088.0,28084.0,0.084]
[1680705666008,0.00014697,28089.0,28084.0,0.35471056]
[1680705666218,0.49675434,28089.0,28085.0,0.3]
[1680705666424,0.35471056,28088.0,28081.0,0.084]
[1680705666662,0.14189681,28087.0,28079.0,0.084]
[1680705666883,0.14189681,28087.0,28080.0,0.084]
[1680705666884,0.14204378,28087.0,28080.0,0.084]
[1680705667162,0.35471056,28086.0,28080.0,0.084]
[1680705667393,0.14204378,28086.0,28080.0,0.04795401]
[1680705667606,0.49660737,28085.0,28080.0,0.04795401]
[1680705667820,0.49675434,28085.0,28078.0,0.084]
[1680705668038,0.54642977,28085.0,28077.0,0.084]
[1680705668249,0.55889177,28085.0,28081.0,0.01332267]
[1680705668464,0.053009,28084.0,28081.0,0.01332267]
[1680705668680,0.35471056,28083.0,28081.0,0.01332267]
[1680705668892,0.054068,28082.0,28081.0,0.01332267]
[1680705669103,0.40892553,28082.0,28081.0,0.01332267]
[1680705669546,0.57138853,28082.0,28081.0,0.01332267]
[1680705669757,0.55892553,28082.0,28081.0,0.01332267]
[1680705669971,0.58592553,28082.0,28081.0,0.01332267]
[1680705670186,0.68981358,28082.0,28081.0,0.01332267]
[1680705670407,0.58592553,28082.0,28081.0,0.01332267]
[1680705670618,0.58592553,28082.0,28081.0,0.36803323]
[1680705670619,0.08121497,28082.0,28081.0,0.36803323]
[1680705670833,0.027,28082.0,28081.0,0.01332267]
[1680705671068,0.027,28082.0,28081.0,0.18102267]
[1680705671280,0.00014697,28088.0,28081.0,0.63573323]
[1680705671488,0.00014697,28090.0,28087.0,0.084]
[1680705671701,0.00014697,28093.0,28089.0,0.4871]
[1680705671946,0.00021,28096.0,28092.0,0.4865]
[1680705672161,0.00021,28101.0,28095.0,0.084]
[1680705672397,0.00021,28101.0,28100.0,0.084]
[1680705672820,0.00021,28102.0,28100.0,0.084]
[1680705673032,0.00021,28102.0,28101.0,0.084]
[1680705673033,0.00012,28102.0,28101.0,0.084]
[1680705673255,0.00021,28103.0,28101.0,0.084]